bitfinex/quotes_SOLUSD_20241220
["timestamp","ask_amount","ask_price","bid_price","bid_amount"]
[1734700242130,71.2689258,184.6,184.52,41.2689258]
[1734700242435,41.2689258,184.56,184.48,41.2689258]
[1734700242618,41.2689258,184.52,184.47,21.714451]
[1734700242815,41.2689258,184.52,184.44,41.2689258]
[1734700244026,41.2689258,184.54,184.46,41.2689258]
[1734700244328,41.2689258,184.56,184.48,41.2689258]
[1734700244509,41.2689258,184.58,184.5,41.2689258]
[1734700244845,41.2689258,184.52,184.42,21.720553]
[1734700245026,41.2689258,184.49,184.42,62.9894788]
[1734700245227,41.2689258,184.51,184.42,41.2689258]
[1734700245544,41.2689258,184.53,184.44,41.2689258]
[1734700245701,41.2689258,184.53,184.46,41.2689258]
[1734700245903,30.0,184.56,184.46,41.2689258]
[1734700245904,41.2689258,184.55,184.46,41.2689258]
[1734700246331,41.2689258,184.57,184.48,41.2689258]
[1734700246535,30.0,184.56,184.48,41.2689258]
[1734700246842,41.2689258,184.57,184.5,41.2689258]
[1734700247129,41.2689258,184.59,184.5,41.2689258]
[1734700247503,41.2689258,184.59,184.43,0.12549]
[1734700247504,41.2689258,184.55,184.48,41.2689258]
[1734700248227,41.2689258,184.53,184.44,41.2689258]
[1734700248930,71.2689258,184.49,184.4,41.2689258]
[1734700249133,41.2689258,184.51,184.42,62.9915138]
[1734700249331,41.2689258,184.51,184.44,41.2689258]
[1734700249501,30.0,184.53,184.48,41.2689258]
[1734700249707,56.08227344,184.64,184.52,41.2689258]
[1734700249927,56.08227344,184.64,184.55,41.2689258]
[1734700249928,71.2689258,184.62,184.55,41.2689258]
[1734700250236,71.2689258,184.62,184.53,41.2689258]
[1734700251033,41.2689258,184.62,184.56,20.0]
[1734700251237,30.0,184.63,184.55,41.2689258]
[1734700251438,41.2689258,184.62,184.55,41.2689258]
[1734700251646,26.08227344,184.64,184.57,41.2689258]
[1734700252009,26.08227344,184.64,184.6,41.2689258]
[1734700252630,26.08227344,184.64,184.62,41.2689258]
[1734700253730,26.08227344,184.64,184.62,62.9708548]
[1734700254764,26.08227344,184.64,184.62,41.2689258]
[1734700255648,67.35119924,184.64,184.56,41.2689258]
[1734700255833,67.35119924,184.64,184.57,21.70707]
[1734700256012,30.12549,184.63,184.57,21.70707]
[1734700256212,30.12549,184.63,184.56,41.2689258]
[1734700256733,26.08227344,184.64,184.58,41.2689258]
[1734700256932,26.08227344,184.64,184.56,41.2689258]
[1734700257346,30.12549,184.63,184.56,41.2689258]
[1734700257738,30.12549,184.61,184.55,21.710025]
[1734700258048,41.2689258,184.58,184.5,41.2689258]
[1734700258332,30.0,184.56,184.5,41.2689258]
[1734700258741,41.2689258,184.58,184.5,41.2689258]
[1734700258941,72.7840258,184.62,184.54,41.2689258]
[1734700259124,1.5151,184.62,184.56,41.2689258]
[1734700259329,30.12549,184.61,184.54,41.2689258]
[1734700260346,26.08227344,184.64,184.58,41.2689258]
[1734700262036,26.08227344,184.64,184.63,20.0]
[1734700262219,26.08227344,184.64,184.62,41.2689258]
[1734700262429,26.07631018,184.68,184.65,20.0]
[1734700262625,26.07631018,184.68,184.67,82.5378516]
[1734700263147,26.07631018,184.68,184.67,41.2689258]
[1734700265845,0.6862406,184.77,184.7,20.0]
[1734700266052,0.6862406,184.77,184.76,41.2689258]
[1734700266270,0.6862406,184.77,184.74,41.2689258]
[1734700266570,0.6862406,184.77,184.76,41.2689258]
[1734700267962,0.6862406,184.77,184.72,41.2689258]
[1734700268120,0.12549,184.76,184.71,21.690324]
[1734700268451,41.3944158,184.74,184.66,41.2689258]
[1734700268833,0.12549,184.7,184.67,21.695384]
[1734700269027,0.12549,184.68,184.67,21.695384]
[1734700269227,0.12549,184.68,184.61,41.2689258]
[1734700269560,0.12549,184.64,184.58,41.2689258]
[1734700269725,41.2689258,184.69,184.61,41.2689258]
[1734700270067,41.2689258,184.67,184.61,21.701523]
[1734700270360,41.2689258,184.69,184.61,41.2689258]
[1734700270569,0.12549,184.68,184.61,41.2689258]
[1734700270853,0.12549,184.64,184.59,41.2689258]
[1734700271461,0.12549,184.64,184.57,41.2689258]
[1734700271628,0.12549,184.64,184.57,62.9754368]
[1734700271822,0.12549,184.62,184.55,41.2689258]
[1734700272026,0.12549,184.62,184.53,41.2689258]
[1734700272027,0.12549,184.6,184.53,41.2689258]
[1734700272960,41.2689258,184.65,184.57,41.2689258]
[1734700273159,41.2689258,184.65,184.52,21.712113]
[1734700273160,71.2689258,184.69,184.61,41.2689258]
[1734700273526,41.2689258,184.69,184.61,41.2689258]
[1734700273722,30.0,184.7,184.63,41.2689258]
[1734700273957,41.2689258,184.71,184.63,41.2689258]
[1734700274459,6.4598,184.75,184.61,41.2689258]
[1734700274460,0.12549,184.68,184.61,41.2689258]
[1734700275032,0.12549,184.65,184.59,41.2689258]
[1734700275747,41.2689258,184.71,184.63,41.2689258]
[1734700276133,41.2689258,184.69,184.61,41.2689258]
[1734700276336,0.12549,184.67,184.61,41.2689258]
[1734700277634,0.12549,184.67,184.59,41.2689258]
[1734700277850,0.12549,184.65,184.59,41.2689258]
[1734700278038,41.3944158,184.65,184.57,41.2689258]
[1734700278830,30.0,184.74,184.63,41.2689258]
[1734700279030,30.0,184.74,184.59,41.2689258]
[1734700279031,41.2689258,184.73,184.64,41.2689258]
[1734700279231,41.2689258,184.71,184.62,41.2689258]
[1734700279466,0.12549,184.7,184.62,41.2689258]
[1734700279859,0.12549,184.7,184.64,41.2689258]
[1734700280059,0.12549,184.63,184.52,21.712113]
[1734700280247,41.2689258,184.62,184.55,41.2689258]
[1734700280446,41.2689258,184.6,184.53,41.2689258]
[1734700280748,41.2689258,184.61,184.54,41.2689258]
[1734700281062,41.2689258,184.62,184.55,41.2689258]
[1734700281358,41.2689258,184.63,184.56,41.2689258]
[1734700281559,61.2689258,184.65,184.53,0.81255057]
[1734700281768,41.2689258,184.54,184.42,0.81262695]
[1734700281985,41.2689258,184.56,184.46,41.2689258]
[1734700282143,41.2689258,184.56,184.48,41.2689258]
[1734700282576,41.2689258,184.58,184.5,41.2689258]
[1734700283276,41.2689258,184.6,184.5,41.2689258]
[1734700284272,41.2689258,184.54,184.46,41.2689258]
[1734700284570,41.2689258,184.6,184.52,41.2689258]
[1734700285135,41.2689258,184.62,184.52,41.2689258]
[1734700285334,41.2689258,184.62,184.46,0.81292828]
[1734700285335,47.5460258,184.64,184.55,20.0]
[1734700285545,41.2689258,184.66,184.58,41.2689258]
[1734700287168,41.2689258,184.68,184.6,41.2689258]
[1734700287378,41.2689258,184.7,184.6,41.2689258]
[1734700287533,41.2689258,184.72,184.64,41.2689258]
[1734700287963,1.5076,184.73,184.66,41.2689258]
[1734700288273,47.6912258,184.76,184.68,41.2689258]
[1734700288611,41.2689258,184.76,184.68,41.2689258]
[1734700289604,0.6862406,184.77,184.7,41.2689258]
[1734700289804,0.6862406,184.77,184.76,20.0]
[1734700290001,0.6862406,184.77,184.76,61.2689258]
[1734700290300,8.41272677,184.8,184.77,0.12549]
[1734700290612,8.41272677,184.82,184.81,20.12549]
[1734700290902,16.82545355,184.84,184.82,0.12549]
[1734700291076,16.82545355,184.84,184.83,82.6633416]
[1734700291405,16.82545355,184.92,184.86,20.0]
[1734700291708,16.82545355,184.92,184.88,41.2689258]
[1734700291882,16.82545355,184.92,184.86,41.2689258]
[1734700292075,74.91983291,184.94,184.87,41.2689258]
[1734700292283,41.2689258,184.92,184.85,41.2689258]
[1734700292481,0.12549,184.91,184.84,20.0]
[1734700292891,0.12549,184.91,184.78,0.81118424]
[1734700292892,41.2689258,184.89,184.82,41.2689258]
[1734700293787,0.12549,184.88,184.82,41.2689258]
[1734700293987,41.2689258,184.85,184.78,41.2689258]
[1734700294386,71.2689258,184.87,184.8,41.2689258]
[1734700294815,41.2689258,184.85,184.78,41.2689258]
[1734700295005,41.2689258,184.85,184.76,41.2689258]
[1734700295182,0.12549,184.83,184.76,41.2689258]
[1734700295382,0.12549,184.83,184.69,7.04145728]
[1734700295383,41.3944158,184.81,184.73,41.2689258]
[1734700296394,0.12549,184.82,184.75,41.2689258]
[1734700296587,30.12549,184.82,184.75,41.2689258]
[1734700296786,0.12549,184.8,184.73,41.2689258]
[1734700296985,41.2689258,184.83,184.75,41.2689258]
[1734700297783,41.2689258,184.89,184.81,41.2689258]
[1734700297978,7.7617,184.9,184.83,41.2689258]
[1734700298185,0.12549,184.89,184.85,41.2689258]
[1734700298603,1.5812,184.9,184.85,41.2689258]
[1734700298783,41.2689258,184.93,184.85,41.2689258]
[1734700299184,71.2689258,184.93,184.85,41.2689258]
[1734700299584,0.12549,184.92,184.85,41.2689258]
[1734700300612,30.12549,184.92,184.85,41.2689258]
[1734700300789,0.12549,184.92,184.85,41.2689258]
[1734700301610,0.12549,184.89,184.81,41.2689258]
[1734700301781,41.3944158,184.89,184.83,41.2689258]
[1734700302107,88.21986935,184.89,184.83,41.2689258]
[1734700302295,58.21986935,184.89,184.83,41.2689258]
[1734700302498,88.21986935,184.89,184.83,41.2689258]
[1734700302694,16.95094355,184.89,184.83,41.2689258]
[1734700303217,16.82545355,184.89,184.83,41.2689258]
[1734700303710,30.12549,184.89,184.83,41.2689258]
[1734700303913,30.12549,184.89,184.81,41.2689258]
[1734700304214,71.3944158,184.89,184.81,41.2689258]
[1734700304392,88.21986935,184.89,184.81,41.2689258]
[1734700304588,0.12549,184.83,184.77,41.2689258]
[1734700304812,41.2689258,184.85,184.77,41.2689258]
[1734700305113,58.09437935,184.87,184.79,41.2689258]
[1734700305315,0.12549,184.86,184.79,41.2689258]
[1734700305795,58.09437935,184.89,184.81,41.2689258]
[1734700306302,88.09437935,184.89,184.81,41.2689258]
[1734700306506,0.12549,184.86,184.78,41.2689258]
[1734700307119,41.3944158,184.86,184.79,41.2689258]
[1734700307524,41.3944158,184.84,184.77,41.2689258]
[1734700307890,58.09437935,184.88,184.8,41.2689258]
[1734700308624,41.2689258,184.83,184.75,41.2689258]
[1734700308813,0.12549,184.82,184.75,41.2689258]
[1734700309019,41.2689258,184.86,184.78,41.2689258]
[1734700309195,58.09437935,184.86,184.78,41.2689258]
[1734700309727,0.12549,184.84,184.78,41.2689258]
[1734700310131,41.3944158,184.84,184.76,41.2689258]
[1734700310495,0.12549,184.81,184.74,41.2689258]
[1734700310697,41.3944158,184.76,184.69,41.2689258]
[1734700310895,41.3944158,184.76,184.68,41.2689258]
[1734700311135,1.6395,184.84,184.66,41.2689258]
[1734700311136,41.3944158,184.74,184.66,41.2689258]
[1734700311429,0.12549,184.72,184.66,41.2689258]
[1734700311739,41.3944158,184.72,184.65,41.2689258]
[1734700311898,0.12549,184.72,184.65,41.2689258]
[1734700312632,41.2689258,184.74,184.66,41.2689258]
[1734700313316,0.12549,184.73,184.66,41.2689258]
[1734700315427,0.12549,184.71,184.64,41.2689258]
[1734700315620,30.12549,184.71,184.64,41.2689258]
[1734700315820,41.2689258,184.7,184.62,41.2689258]
[1734700316633,0.12549,184.69,184.64,41.2689258]
[1734700317308,41.2689258,184.72,184.64,41.2689258]
[1734700317509,0.12549,184.71,184.64,41.2689258]
[1734700318407,71.2689258,184.78,184.7,41.2689258]
[1734700318617,71.2689258,184.78,184.59,42.08128592]
[1734700318618,16.82545355,184.8,184.74,41.2689258]
[1734700318946,16.82545355,184.8,184.76,41.2689258]
[1734700319141,76.55933291,184.84,184.74,41.2689258]
[1734700319142,46.82545355,184.81,184.74,41.2689258]
[1734700319349,16.82545355,184.81,184.74,41.2689258]
[1734700319962,16.95094355,184.8,184.74,41.2689258]
[1734700320141,16.82545355,184.8,184.74,41.2689258]
[1734700320343,16.82545355,184.8,184.69,7.41668463]
[1734700320344,16.82545355,184.8,184.76,41.2689258]
[1734700321051,16.82545355,184.79,184.76,41.2689258]
[1734700321367,16.82545355,184.79,184.74,41.2689258]
[1734700321852,16.82545355,184.78,184.74,41.2689258]
[1734700322161,71.3944158,184.77,184.7,41.2689258]
[1734700322390,0.12549,184.77,184.72,41.2689258]
[1734700322523,16.82545355,184.76,184.72,41.2689258]
[1734700323359,16.82545355,184.77,184.72,41.2689258]
[1734700323544,16.82545355,184.77,184.7,41.2689258]
[1734700323545,0.12549,184.76,184.7,41.2689258]
[1734700324020,16.82545355,184.75,184.74,41.2689258]
[1734700324731,16.82545355,184.75,184.64,0.81185799]
[1734700324732,16.82545355,184.76,184.72,41.2689258]
[1734700325252,0.12549,184.75,184.7,41.2689258]
[1734700325555,16.95094355,184.75,184.7,41.2689258]
[1734700325765,16.82545355,184.75,184.72,41.2689258]
[1734700325941,33.65090711,184.79,184.74,41.2689258]
[1734700326663,17.01172805,184.75,184.74,41.2689258]
[1734700327581,33.65090711,184.77,184.74,41.2689258]
[1734700327760,33.65090711,184.77,184.72,41.2689258]
[1734700328082,17.01438294,184.73,184.72,41.2689258]
[1734700330251,33.65090711,184.75,184.74,20.12549]
[1734700330450,50.47636067,184.81,184.75,0.12549]
[1734700330649,50.47636067,184.81,184.8,41.2689258]
[1734700331162,67.30181423,184.83,184.82,20.0]
[1734700331382,67.30181423,184.83,184.8,41.2689258]
[1734700331962,0.12549,184.82,184.77,41.2689258]
[1734700333663,67.30181423,184.83,184.77,41.2689258]
[1734700334192,0.12549,184.82,184.77,41.2689258]
[1734700334484,97.30181423,184.83,184.77,41.2689258]
[1734700334688,67.30181423,184.83,184.79,41.2689258]
[1734700335060,67.30181423,184.83,184.81,41.2689258]
[1734700336151,67.30181423,184.83,184.71,0.81163952]
[1734700336358,30.12549,184.82,184.75,41.2689258]
[1734700336652,0.12549,184.8,184.73,41.2689258]
[1734700336881,30.12549,184.8,184.73,41.2689258]
[1734700337787,41.2689258,184.86,184.68,41.2689258]
[1734700337788,30.0,184.87,184.79,41.2689258]
[1734700337995,8.0461,184.88,184.82,41.2689258]
[1734700338284,1.6604,184.88,184.82,41.2689258]
[1734700338875,30.0,184.89,184.82,41.2689258]
[1734700339382,30.0,184.87,184.8,41.2689258]
[1734700339684,0.12549,184.84,184.8,41.2689258]
[1734700339896,71.2689258,184.87,184.8,41.2689258]
[1734700340205,0.12549,184.84,184.78,41.2689258]
[1734700340551,0.12549,184.82,184.78,41.2689258]
[1734700341052,30.0,184.85,184.78,41.2689258]
[1734700341265,0.12549,184.84,184.78,41.2689258]
[1734700341466,0.12549,184.81,184.76,41.2689258]
[1734700341783,30.0,184.82,184.76,41.2689258]
[1734700341965,0.12549,184.79,184.74,41.2689258]
[1734700342166,0.12549,184.79,184.72,41.2689258]
[1734700342382,0.12549,184.77,184.7,41.2689258]
[1734700342582,0.12549,184.75,184.68,41.2689258]
[1734700342867,0.12549,184.75,184.64,6.6261]
[1734700342868,0.12549,184.73,184.66,41.2689258]
[1734700343178,41.2689258,184.77,184.68,41.2689258]
[1734700343386,41.2689258,184.77,184.7,41.2689258]
[1734700343680,0.12549,184.75,184.7,41.2689258]
[1734700343876,47.6758258,184.79,184.72,41.2689258]
[1734700344182,41.2689258,184.81,184.72,41.2689258]
[1734700344497,30.0,184.8,184.72,41.2689258]
[1734700344691,0.12549,184.77,184.72,41.2689258]
[1734700344864,0.12549,184.75,184.7,41.2689258]
[1734700345289,0.12549,184.75,184.71,41.2689258]
[1734700345500,0.12549,184.77,184.7,41.2689258]
[1734700345695,41.3944158,184.77,184.7,41.2689258]
[1734700345903,0.12549,184.75,184.7,41.2689258]
[1734700346367,0.12549,184.75,184.69,41.2689258]
[1734700346567,0.12549,184.75,184.68,41.2689258]
[1734700346770,71.2689258,184.79,184.71,41.2689258]
[1734700346975,41.2689258,184.8,184.72,41.2689258]
[1734700347270,30.0,184.79,184.72,41.2689258]
[1734700347671,31.5797,184.82,184.75,41.2689258]
[1734700347872,1.5797,184.82,184.77,41.2689258]
[1734700348099,71.2689258,184.87,184.78,41.2689258]
[1734700348404,71.2689258,184.87,184.79,41.2689258]
[1734700349112,0.12549,184.82,184.77,41.2689258]
[1734700349293,0.12549,184.82,184.75,41.2689258]
[1734700349807,30.12549,184.82,184.75,41.2689258]
[1734700350107,0.12549,184.81,184.77,41.2689258]
[1734700350611,0.12549,184.81,184.75,41.2689258]
[1734700351093,0.12549,184.79,184.73,41.2689258]
[1734700351293,0.12549,184.76,184.71,41.2689258]
[1734700351490,41.2689258,184.86,184.71,41.2689258]
[1734700351491,41.2689258,184.79,184.71,41.2689258]
[1734700351993,41.2689258,184.86,184.77,41.2689258]
[1734700352309,1.6575,184.89,184.85,41.2689258]
[1734700352517,30.0,184.93,184.85,41.2689258]
[1734700353016,41.3944158,184.92,184.85,41.2689258]
[1734700353182,41.3944158,184.92,184.78,7.06010312]
[1734700353183,0.12549,184.88,184.83,41.2689258]
[1734700353379,30.0,184.89,184.83,41.2689258]
[1734700353612,30.0,184.87,184.81,41.2689258]
[1734700353922,41.2689258,184.9,184.81,41.2689258]
[1734700353923,0.12549,184.86,184.81,41.2689258]
[1734700354522,30.0,184.89,184.81,41.2689258]
[1734700354686,30.0,184.91,184.86,20.0]
[1734700354883,30.0,184.91,184.85,41.2689258]
[1734700355511,30.0,184.93,184.87,41.2689258]
[1734700355817,6.5869,184.94,184.78,0.81159268]
[1734700355818,6.5869,184.94,184.89,41.2689258]
[1734700355982,0.6862406,184.95,184.89,41.2689258]
[1734700356186,0.6862406,184.95,184.92,20.0]
[1734700356920,0.6862406,184.95,184.85,6.0023]
[1734700356921,0.12549,184.94,184.89,41.2689258]
[1734700357206,30.12549,184.94,184.87,41.2689258]
[1734700357419,41.3944158,184.91,184.84,41.2689258]
[1734700357578,0.12549,184.91,184.86,41.2689258]
[1734700357783,0.12549,184.91,184.87,41.2689258]
[1734700358081,30.0,184.93,184.87,41.2689258]
[1734700358285,0.12549,184.92,184.87,41.2689258]
[1734700358514,0.12549,184.9,184.83,41.2689258]
[1734700358719,30.0,184.91,184.85,41.2689258]
[1734700358923,0.12549,184.9,184.85,41.2689258]
[1734700359617,0.12549,184.9,184.83,41.2689258]
[1734700360003,0.12549,184.88,184.83,41.2689258]
[1734700360313,0.12549,184.86,184.83,41.2689258]
[1734700360516,71.2689258,184.91,184.83,41.2689258]
[1734700360886,0.12549,184.87,184.83,41.2689258]
[1734700361219,0.12549,184.87,184.83,25.35329102]
[1734700361786,30.0,184.86,184.81,25.35329102]
[1734700361993,30.0,184.86,184.77,21.680542]
[1734700361994,30.0,184.84,184.77,25.35329102]
[1734700362182,25.47878102,184.81,184.73,25.35329102]
[1734700362394,25.35329102,184.78,184.73,21.685539]
[1734700362597,0.12549,184.77,184.71,25.35329102]
[1734700363202,0.12549,184.75,184.69,25.35329102]
[1734700363410,25.47878102,184.73,184.65,25.35329102]
[1734700363607,0.12549,184.71,184.64,47.05006202]
[1734700363824,0.12549,184.69,184.64,21.696771]
[1734700364050,0.12549,184.69,184.64,47.05006202]
[1734700364202,0.12549,184.69,184.64,25.35329102]
[1734700364404,0.12549,184.69,184.63,25.35329102]
[1734700365014,30.0,184.7,184.63,41.28649027]
[1734700365220,41.28649027,184.71,184.63,41.28649027]
[1734700365434,30.0,184.71,184.65,41.28649027]
[1734700365641,41.28649027,184.73,184.65,41.28649027]
[1734700365937,30.0,184.76,184.71,41.28649027]
[1734700366105,71.28649027,184.76,184.69,41.28649027]
[1734700366302,30.0,184.89,184.78,20.0]
[1734700366602,30.0,184.8,184.68,47.53069027]
[1734700366829,0.12549,184.79,184.76,41.28649027]
[1734700367013,30.0,184.8,184.76,41.28649027]
[1734700367446,30.0,184.8,184.78,41.28649027]
[1734700368009,30.0,184.82,184.78,41.28649027]
[1734700368543,30.0,184.79,184.76,41.28649027]
[1734700369136,30.0,184.77,184.76,41.28649027]
[1734700369311,0.12549,184.78,184.76,41.28649027]
[1734700369510,0.12549,184.74,184.72,41.28649027]
[1734700370123,1.6092,184.81,184.64,27.966431]
[1734700370124,30.12549,184.71,184.7,41.28649027]
[1734700370437,0.12549,184.7,184.68,41.28649027]
[1734700370846,0.12549,184.68,184.66,41.28649027]
[1734700371809,30.12549,184.67,184.66,41.28649027]
[1734700372013,0.12549,184.66,184.62,41.28649027]
[1734700372336,0.12549,184.63,184.58,41.28649027]
[1734700372545,0.12549,184.58,184.54,41.28649027]
[1734700373049,30.12549,184.58,184.52,41.28649027]
[1734700373211,0.12549,184.57,184.52,41.28649027]
[1734700373415,30.0,184.64,184.56,41.28649027]
[1734700373633,0.12549,184.61,184.57,41.28649027]
[1734700374639,4.01573436,184.6,184.55,41.28649027]
[1734700374846,4.01573436,184.6,184.5,41.28649027]
[1734700374847,0.12549,184.59,184.57,41.28649027]
[1734700375141,30.0,184.64,184.57,41.28649027]
[1734700375338,30.0,184.68,184.62,41.28649027]
[1734700375530,30.0,184.68,184.59,41.28649027]
[1734700375730,41.28649027,184.77,184.59,41.28649027]
[1734700375731,4.01216332,184.67,184.64,41.28649027]
[1734700375940,1.56,184.69,184.68,0.98783668]
[1734700376249,30.0,184.7,184.68,0.98783668]
[1734700376422,0.12549,184.69,184.68,0.98783668]
[1734700377211,30.0,184.7,184.68,0.98783668]
[1734700377421,0.12549,184.69,184.68,0.98783668]
[1734700378512,30.0,184.72,184.68,0.98783668]
[1734700378713,30.0,184.72,184.69,41.28649027]
[1734700378940,30.0,184.75,184.69,41.28649027]
[1734700379344,0.12549,184.75,184.69,41.28649027]
[1734700379641,0.12549,184.73,184.69,41.28649027]
[1734700379849,31.6251,184.76,184.69,41.28649027]
[1734700380033,30.0,184.74,184.69,41.28649027]
[1734700380349,30.0,184.75,184.69,41.28649027]
[1734700380549,30.0,184.81,184.73,41.28649027]
[1734700380718,30.0,184.83,184.79,41.28649027]
[1734700381321,0.12549,184.82,184.77,41.28649027]
[1734700381529,6.3228,184.88,184.77,41.28649027]
[1734700381530,30.0,184.81,184.77,41.28649027]
[1734700381832,0.12549,184.8,184.77,41.28649027]
[1734700382351,30.0,184.83,184.77,41.28649027]
[1734700382547,30.0,184.83,184.79,41.28649027]
[1734700382751,30.0,184.83,184.77,41.28649027]
[1734700382936,30.0,184.82,184.77,41.28649027]
[1734700383141,0.12549,184.79,184.77,41.28649027]
[1734700384039,0.12549,184.78,184.77,41.28649027]
[1734700384440,30.0,184.78,184.75,41.28649027]
[1734700384627,30.0,184.8,184.75,41.28649027]
[1734700385018,0.12549,184.79,184.75,41.28649027]
[1734700385216,30.0,184.84,184.77,41.28649027]
[1734700385425,30.0,184.84,184.79,41.28649027]
[1734700385619,30.0,184.84,184.71,6.0145]
[1734700385620,30.0,184.86,184.81,41.28649027]
[1734700385844,30.0,184.9,184.83,41.28649027]
[1734700386257,30.0,184.9,184.85,41.28649027]
[1734700386420,30.6862406,184.95,184.87,41.28649027]
[1734700386753,0.6862406,184.95,184.91,41.28649027]
[1734700386958,0.6862406,184.95,184.93,41.28649027]
[1734700387124,0.6862406,184.95,184.94,41.28649027]
[1734700387330,0.6862406,184.95,184.94,82.57298054]
[1734700387563,30.0,185.07,184.97,20.0]
[1734700387764,30.0,185.09,185.05,41.28649027]
[1734700387962,30.0,185.09,185.06,41.28649027]
[1734700388757,30.0,185.09,185.05,41.28649027]
[1734700388954,30.0,185.09,185.06,41.28649027]
[1734700389118,30.0,185.12,185.08,41.28649027]
[1734700390439,0.6862406,185.14,185.11,41.28649027]
[1734700390763,0.6862406,185.14,185.13,41.28649027]
[1734700392024,0.6862406,185.14,185.12,41.28649027]
[1734700392664,0.8117306,185.14,185.12,41.28649027]
[1734700393154,0.8117306,185.14,185.05,6.3492]
[1734700393155,0.6862406,185.14,185.13,41.28649027]
[1734700395446,0.8117306,185.14,185.13,41.28649027]
[1734700395749,0.8117306,185.14,185.11,41.28649027]
[1734700395954,0.12549,185.13,185.11,41.28649027]
[1734700396161,0.12549,185.13,185.09,41.28649027]
[1734700396352,0.12549,185.13,185.1,41.28649027]
[1734700396559,0.6862406,185.14,185.12,41.28649027]
[1734700397267,0.6862406,185.14,185.13,41.28649027]
[1734700398138,0.6862406,185.14,185.12,41.28649027]
[1734700398333,0.6862406,185.14,185.13,41.28649027]
[1734700398867,0.6862406,185.14,185.12,41.28649027]
[1734700399781,0.6862406,185.14,185.13,41.28649027]
[1734700399943,0.6862406,185.14,185.13,62.92559327]
[1734700401253,0.6862406,185.14,185.13,104.21208354]
[1734700401462,1.6558,185.27,185.16,20.0]
[1734700401659,1.6558,185.27,185.22,41.28649027]
[1734700401861,30.0,185.28,185.21,41.28649027]
[1734700402061,30.0,185.28,185.22,41.28649027]
[1734700402260,30.0,185.28,185.21,41.28649027]
[1734700402569,30.0,185.26,185.21,41.28649027]
[1734700402769,0.12549,185.25,185.2,41.28649027]
[1734700402976,0.12549,185.25,185.16,20.0]
[1734700402977,0.12549,185.23,185.18,41.28649027]
[1734700403176,0.12549,185.21,185.16,41.28649027]
[1734700403373,30.0,185.22,185.16,41.28649027]
[1734700403651,30.0,185.2,185.14,41.28649027]
[1734700403854,71.28649027,185.25,185.18,41.28649027]
[1734700404089,41.28649027,185.31,185.13,41.28649027]
[1734700404090,30.0,185.23,185.19,41.28649027]
[1734700404454,30.0,185.24,185.19,41.28649027]
[1734700404883,30.0,185.28,185.21,41.28649027]
[1734700405090,30.0,185.25,185.21,41.28649027]
[1734700405260,0.12549,185.26,185.2,41.28649027]
[1734700405465,30.0,185.25,185.21,41.28649027]
[1734700405995,0.12549,185.26,185.21,41.28649027]
[1734700406288,30.0,185.29,185.14,22.44842602]
[1734700406601,30.0,185.29,185.23,41.28649027]
[1734700406766,30.0,185.29,185.21,41.28649027]
[1734700407891,0.12549,185.26,185.21,41.28649027]
[1734700408192,30.12549,185.26,185.21,41.28649027]
[1734700408685,30.0,185.28,185.21,41.28649027]
[1734700409587,30.0,185.26,185.21,41.28649027]
[1734700411288,0.12549,185.22,185.17,41.28649027]
[1734700411592,71.28649027,185.27,185.19,41.28649027]
[1734700411791,30.0,185.23,185.19,41.28649027]
[1734700412394,30.0,185.25,185.21,41.28649027]
[1734700413091,30.0,185.25,185.19,41.28649027]
[1734700413393,0.12549,185.24,185.19,25.25261448]
[1734700413610,30.0,185.27,185.21,25.25261448]
[1734700413763,0.12549,185.26,185.21,25.25261448]
[1734700413959,25.25261448,185.29,185.21,25.25261448]
[1734700413960,55.25261448,185.29,185.21,25.25261448]
[1734700414495,30.0,185.29,185.23,25.25261448]
[1734700415368,30.0,185.28,185.21,25.25261448]
[1734700415699,0.12549,185.27,185.21,25.25261448]
[1734700415991,0.12549,185.27,185.14,22.44844444]
[1734700415992,30.0,185.3,185.25,25.25261448]
[1734700416294,30.0,185.26,185.23,25.25261448]
[1734700416495,25.25261448,185.29,185.21,25.25261448]
[1734700416701,30.0,185.33,185.26,25.25261448]
[1734700416997,30.0,185.31,185.26,25.25261448]
[1734700417374,30.0,185.31,185.24,25.25261448]
[1734700418090,0.12549,185.3,185.26,25.25261448]
[1734700418305,0.6862406,185.32,185.28,25.25261448]
[1734700418872,0.6862406,185.32,185.27,25.25261448]
[1734700419597,30.12549,185.31,185.26,25.25261448]
[1734700420300,30.12549,185.31,185.25,25.25261448]
[1734700420597,30.12549,185.31,185.26,25.25261448]